[Event "*** Biggest EVER Titled Tuesday"]
[Site "Chess.com"]
[Date "2018.04.17"]
[Round "4"]
[White "milovanratkovic"]
[Black "jacky72"]
[Result "1/2-1/2"]
[WhiteElo "2467"]
[BlackElo "2640"]
[TimeControl "180+2"]
[EndTime "13:53:18 PDT"]
[Termination "Game drawn by repetition"]

1. d4 {[%clk 0:03:01.6]} 1... Nf6 {[%clk 0:02:58.3]} 2. Bg5 {[%clk 0:03:00.9]}
2... Ne4 {[%clk 0:02:58.1]} 3. Bf4 {[%clk 0:03:01.3]} 3... d5 {[%clk 0:02:57.1]}
4. f3 {[%clk 0:03:01.8]} 4... Nf6 {[%clk 0:02:56.8]} 5. e4 {[%clk 0:03:02.8]}
5... dxe4 {[%clk 0:02:56.8]} 6. Nc3 {[%clk 0:03:03.8]} 6... exf3 {[%clk
0:02:56]} 7. Nxf3 {[%clk 0:03:05.7]} 7... g6 {[%clk 0:02:57.4]} 8. Bc4 {[%clk
0:02:59.9]} 8... Bg7 {[%clk 0:02:58.5]} 9. Qd2 {[%clk 0:03:00.3]} 9... O-O
{[%clk 0:02:59.1]} 10. O-O-O {[%clk 0:02:55.2]} 10... a6 {[%clk 0:03:00.3]} 11.
Bh6 {[%clk 0:02:53.1]} 11... b5 {[%clk 0:02:59.6]} 12. Bd3 {[%clk 0:02:40.4]}
12... Bb7 {[%clk 0:02:46]} 13. Bxg7 {[%clk 0:02:32.1]} 13... Kxg7 {[%clk
0:02:46.6]} 14. h4 {[%clk 0:02:25.7]} 14... h5 {[%clk 0:02:45.6]} 15. Ne2 {[%clk
0:02:23.9]} 15... Nc6 {[%clk 0:02:25]} 16. Qf4 {[%clk 0:01:37.5]} 16... Nb4
{[%clk 0:02:13.8]} 17. Kb1 {[%clk 0:01:25.4]} 17... Qd5 {[%clk 0:02:10.9]} 18.
b3 {[%clk 0:01:22.9]} 18... a5 {[%clk 0:02:05.1]} 19. Ng3 {[%clk 0:01:09.8]}
19... Nxd3 {[%clk 0:01:49.1]} 20. Rxd3 {[%clk 0:01:10.3]} 20... a4 {[%clk
0:01:49.6]} 21. Ne5 {[%clk 0:00:54.4]} 21... axb3 {[%clk 0:01:35.9]} 22. cxb3
{[%clk 0:00:55.4]} 22... Qxg2 {[%clk 0:01:31.5]} 23. Rd2 {[%clk 0:00:50.6]}
23... Qd5 {[%clk 0:01:16.3]} 24. Rg1 {[%clk 0:00:37.4]} 24... Ng4 {[%clk
0:01:11.9]} 25. Nf5+ {[%clk 0:00:35.6]} 25... gxf5 {[%clk 0:00:49.2]} 26. Qg5+
{[%clk 0:00:36]} 26... Kh7 {[%clk 0:00:28.6]} 27. Qxf5+ {[%clk 0:00:36.6]} 27...
Kh6 {[%clk 0:00:27.1]} 28. Qg5+ {[%clk 0:00:29.9]} 28... Kh7 {[%clk 0:00:28.1]}
29. Qf5+ {[%clk 0:00:20.9]} 29... Kh6 {[%clk 0:00:20.9]} 30. Qg5+ {[%clk
0:00:07.7]} 30... Kh7 {[%clk 0:00:22]} 31. Qf5+ {[%clk 0:00:08.4]} 31... Kg7
{[%clk 0:00:17.5]} 32. Qg5+ {[%clk 0:00:06.1]} 32... Kh7 {[%clk 0:00:18.8]} 33.
Qf5+ {[%clk 0:00:06.5]} 33... Kh6 {[%clk 0:00:15.6]} 34. Qg5+ {[%clk 0:00:07]}
34... Kh7 {[%clk 0:00:16.8]} 35. Qf5+ {[%clk 0:00:06.9]} 1/2-1/2

[Event "*** Biggest EVER Titled Tuesday"]
[Site "Chess.com"]
[Date "2018.04.17"]
[Round "4"]
[White "bugsbunny444"]
[Black "jlandaw"]
[Result "0-1"]
[WhiteElo "2410"]
[BlackElo "2425"]
[TimeControl "180+2"]
[EndTime "13:53:24 PDT"]
[Termination "jlandaw won by resignation"]

1. Nf3 {[%clk 0:03:01.9]} 1... Nf6 {[%clk 0:02:59.7]} 2. c4 {[%clk 0:03:02.9]}
2... c6 {[%clk 0:02:58.3]} 3. g3 {[%clk 0:03:03.7]} 3... g6 {[%clk 0:02:57.7]}
4. b4 {[%clk 0:03:03.5]} 4... Bg7 {[%clk 0:02:57.1]} 5. Bb2 {[%clk 0:03:04.5]}
5... d5 {[%clk 0:02:56.9]} 6. cxd5 {[%clk 0:03:05]} 6... cxd5 {[%clk 0:02:54.7]}
7. Bg2 {[%clk 0:03:06.3]} 7... O-O {[%clk 0:02:55.8]} 8. O-O {[%clk 0:03:07]}
8... Qb6 {[%clk 0:02:27.6]} 9. a3 {[%clk 0:03:03.8]} 9... a5 {[%clk 0:02:25.1]}
10. Nc3 {[%clk 0:03:04.6]} 10... Nc6 {[%clk 0:02:21.1]} 11. b5 {[%clk
0:02:39.6]} 11... Na7 {[%clk 0:01:39.8]} 12. a4 {[%clk 0:02:00.6]} 12... Rd8
{[%clk 0:01:40.8]} 13. d3 {[%clk 0:01:31.9]} 13... d4 {[%clk 0:01:05.9]} 14. Nb1
{[%clk 0:01:20.9]} 14... Nd5 {[%clk 0:01:07.2]} 15. Qd2 {[%clk 0:01:10.6]} 15...
Be6 {[%clk 0:00:58.9]} 16. Na3 {[%clk 0:00:33.8]} 16... Nc3 {[%clk 0:00:46.5]}
17. e3 {[%clk 0:00:34.9]} 17... dxe3 {[%clk 0:00:29.5]} 18. fxe3 {[%clk
0:00:36]} 18... Ne4 {[%clk 0:00:20.9]} 19. Qe2 {[%clk 0:00:15.5]} 19... Bxb2
{[%clk 0:00:21.7]} 20. Qxb2 {[%clk 0:00:13.3]} 20... Qxe3+ {[%clk 0:00:22.6]}
21. Kh1 {[%clk 0:00:14.8]} 21... Rxd3 {[%clk 0:00:18.7]} 22. Ne5 {[%clk
0:00:12.1]} 22... Rb3 {[%clk 0:00:10.4]} 23. Nac4 {[%clk 0:00:12.9]} 23... Nxg3+
{[%clk 0:00:09.3]} 24. hxg3 {[%clk 0:00:12.5]} 24... Qh6+ {[%clk 0:00:10.9]} 25.
Kg1 {[%clk 0:00:11.1]} 25... Rxb2 {[%clk 0:00:12.3]} 26. Nxb2 {[%clk 0:00:12.6]}
26... Qe3+ {[%clk 0:00:13.1]} 27. Rf2 {[%clk 0:00:11.7]} 27... Qxe5 {[%clk
0:00:13.4]} 28. Rd1 {[%clk 0:00:11.4]} 28... Rc8 {[%clk 0:00:13.7]} 29. Bxb7
{[%clk 0:00:11.5]} 29... Qxg3+ {[%clk 0:00:11.7]} 30. Bg2 {[%clk 0:00:10.5]}
30... Bb3 {[%clk 0:00:09.6]} 31. Rd3 {[%clk 0:00:11.1]} 31... Rc1+ {[%clk
0:00:07.2]} 32. Rf1 {[%clk 0:00:12.6]} 32... Qe5 {[%clk 0:00:05.9]} 33. Rxc1
{[%clk 0:00:11.6]} 33... Qxb2 {[%clk 0:00:06.1]} 34. Rcc3 {[%clk 0:00:06.8]}
34... Bxa4 {[%clk 0:00:06.7]} 35. Rd8+ {[%clk 0:00:06.9]} 35... Kg7 {[%clk
0:00:07.6]} 36. Rdd3 {[%clk 0:00:04.3]} 36... Bxb5 {[%clk 0:00:08.5]} 37. Re3
{[%clk 0:00:05.8]} 37... a4 {[%clk 0:00:09]} 38. Ra3 {[%clk 0:00:06.3]} 38...
Nc6 {[%clk 0:00:09.2]} 0-1

[Event "*** Biggest EVER Titled Tuesday"]
[Site "Chess.com"]
[Date "2018.04.17"]
[Round "4"]
[White "Shant_Sargsyan"]
[Black "dretch"]
[Result "0-1"]
[WhiteElo "2804"]
[BlackElo "2702"]
[TimeControl "180+2"]
[EndTime "13:53:28 PDT"]
[Termination "dretch won by resignation"]

1. d4 {[%clk 0:03:01.6]} 1... d5 {[%clk 0:03:00.7]} 2. c4 {[%clk 0:02:54.3]}
2... c6 {[%clk 0:03:01.8]} 3. Nf3 {[%clk 0:02:54.2]} 3... Nf6 {[%clk 0:03:02.9]}
4. Nc3 {[%clk 0:02:54.9]} 4... dxc4 {[%clk 0:03:03.7]} 5. a4 {[%clk 0:02:55.5]}
5... e6 {[%clk 0:03:04.9]} 6. e4 {[%clk 0:02:55.9]} 6... Bb4 {[%clk 0:03:05.2]}
7. Bg5 {[%clk 0:02:56.9]} 7... h6 {[%clk 0:02:59.9]} 8. Bxf6 {[%clk 0:02:56.5]}
8... Qxf6 {[%clk 0:03:01.8]} 9. Bxc4 {[%clk 0:02:57]} 9... c5 {[%clk 0:02:55.4]}
10. O-O {[%clk 0:02:39.5]} 10... O-O {[%clk 0:02:42.2]} 11. e5 {[%clk
0:02:39.8]} 11... Qd8 {[%clk 0:02:38.4]} 12. Ne4 {[%clk 0:02:40.2]} 12... cxd4
{[%clk 0:02:36.6]} 13. Qe2 {[%clk 0:02:40.7]} 13... Nd7 {[%clk 0:02:31.9]} 14.
Rfd1 {[%clk 0:02:36.4]} 14... Qa5 {[%clk 0:02:32.2]} 15. Ng3 {[%clk 0:02:35.3]}
15... Rd8 {[%clk 0:02:12.2]} 16. Rxd4 {[%clk 0:02:28.7]} 16... Nf8 {[%clk
0:02:08.3]} 17. Rxd8 {[%clk 0:02:28.6]} 17... Qxd8 {[%clk 0:02:08.7]} 18. Rd1
{[%clk 0:02:30.5]} 18... Qe7 {[%clk 0:01:58.9]} 19. h4 {[%clk 0:02:22.2]} 19...
Bd7 {[%clk 0:01:57.4]} 20. Bb5 {[%clk 0:02:23.3]} 20... Rd8 {[%clk 0:01:55.3]}
21. Bxd7 {[%clk 0:02:15.7]} 21... Rxd7 {[%clk 0:01:56.1]} 22. h5 {[%clk
0:02:14.8]} 22... a5 {[%clk 0:01:46.9]} 23. Ne4 {[%clk 0:02:11.7]} 23... Rxd1+
{[%clk 0:01:44]} 24. Qxd1 {[%clk 0:02:12.7]} 24... Qd7 {[%clk 0:01:45.2]} 25.
Qc2 {[%clk 0:02:11.7]} 25... Qd5 {[%clk 0:01:44.4]} 26. Nc3 {[%clk 0:01:25.6]}
26... Qc6 {[%clk 0:01:36.1]} 27. Qe4 {[%clk 0:01:21.4]} 27... Bxc3 {[%clk
0:01:24.6]} 28. Qxc6 {[%clk 0:01:21.9]} 28... bxc6 {[%clk 0:01:26.5]} 29. bxc3
{[%clk 0:01:23.3]} 29... Nd7 {[%clk 0:01:28.4]} 30. Kf1 {[%clk 0:01:19.3]} 30...
Nb6 {[%clk 0:01:18.3]} 31. Nd4 {[%clk 0:01:07.4]} 31... c5 {[%clk 0:01:02.9]}
32. Nb3 {[%clk 0:01:07.8]} 32... Nxa4 {[%clk 0:01:03.6]} 33. c4 {[%clk
0:01:09.1]} 33... Nb2 {[%clk 0:01:04.9]} 34. Nxa5 {[%clk 0:01:02.4]} 34... Nd3
{[%clk 0:01:05.9]} 35. Nb3 {[%clk 0:00:57.4]} 35... Nxe5 {[%clk 0:01:02.9]} 36.
Nxc5 {[%clk 0:00:58.9]} 36... Nxc4 {[%clk 0:01:03.9]} 37. Ke2 {[%clk 0:00:58.9]}
37... Kf8 {[%clk 0:01:01.5]} 38. f4 {[%clk 0:00:50.5]} 38... Ke7 {[%clk
0:01:00.5]} 39. Ne4 {[%clk 0:00:51.5]} 39... Nd6 {[%clk 0:00:58.9]} 40. Nc3
{[%clk 0:00:50]} 40... f5 {[%clk 0:00:55.5]} 41. Kf3 {[%clk 0:00:50]} 41... Ne8
{[%clk 0:00:56.5]} 42. g4 {[%clk 0:00:49.5]} 42... Nf6 {[%clk 0:00:57.2]} 43. g5
{[%clk 0:00:17.8]} 43... hxg5 {[%clk 0:00:56.8]} 44. fxg5 {[%clk 0:00:15.7]}
44... Nxh5 {[%clk 0:00:58]} 45. Nb5 {[%clk 0:00:12.7]} 45... e5 {[%clk
0:00:57.3]} 46. Nc7 {[%clk 0:00:11.9]} 46... Nf4 {[%clk 0:00:56.9]} 47. Ke3
{[%clk 0:00:11.3]} 47... Ne6 {[%clk 0:00:50.7]} 48. Nd5+ {[%clk 0:00:12.4]}
48... Kf7 {[%clk 0:00:50.2]} 0-1

[Event "*** Biggest EVER Titled Tuesday"]
[Site "Chess.com"]
[Date "2018.04.17"]
[Round "4"]
[White "Iball95"]
[Black "chessking2151"]
[Result "1-0"]
[WhiteElo "2531"]
[BlackElo "2370"]
[TimeControl "180+2"]
[EndTime "13:53:28 PDT"]
[Termination "Iball95 won by resignation"]

1. d4 {[%clk 0:03:01.9]} 1... Nf6 {[%clk 0:02:59.6]} 2. Bf4 {[%clk 0:03:03.3]}
2... d5 {[%clk 0:03:00.1]} 3. e3 {[%clk 0:03:04.3]} 3... c5 {[%clk 0:03:01.3]}
4. c3 {[%clk 0:03:05.3]} 4... Qb6 {[%clk 0:03:01.2]} 5. Qb3 {[%clk 0:03:05.4]}
5... c4 {[%clk 0:03:00.6]} 6. Qc2 {[%clk 0:03:06]} 6... g6 {[%clk 0:03:01.4]} 7.
b3 {[%clk 0:02:53.3]} 7... Bf5 {[%clk 0:03:00.5]} 8. Qb2 {[%clk 0:02:54.4]} 8...
Nc6 {[%clk 0:02:56.9]} 9. Nf3 {[%clk 0:02:53.9]} 9... Bg7 {[%clk 0:02:55.3]} 10.
Be2 {[%clk 0:02:54.1]} 10... O-O {[%clk 0:02:55.9]} 11. O-O {[%clk 0:02:54.8]}
11... Rfc8 {[%clk 0:02:51.4]} 12. Nbd2 {[%clk 0:02:54.6]} 12... Ne4 {[%clk
0:02:49.9]} 13. Nxe4 {[%clk 0:02:48.8]} 13... Bxe4 {[%clk 0:02:47.6]} 14. Nd2
{[%clk 0:02:49.5]} 14... Bf5 {[%clk 0:02:48]} 15. Qa3 {[%clk 0:02:45.6]} 15...
cxb3 {[%clk 0:02:45.6]} 16. axb3 {[%clk 0:02:47.5]} 16... e5 {[%clk 0:02:46.5]}
17. Bg3 {[%clk 0:02:45.2]} 17... exd4 {[%clk 0:02:42.5]} 18. exd4 {[%clk
0:02:47.1]} 18... Nd8 {[%clk 0:02:19.4]} 19. Qb2 {[%clk 0:02:27.7]} 19... Ne6
{[%clk 0:02:17.2]} 20. Nf3 {[%clk 0:02:27.8]} 20... Be4 {[%clk 0:02:11.9]} 21.
Rfe1 {[%clk 0:02:26.7]} 21... Qc6 {[%clk 0:02:02.3]} 22. Rac1 {[%clk 0:02:23.4]}
22... b5 {[%clk 0:01:50.2]} 23. Ne5 {[%clk 0:02:20.7]} 23... Qb7 {[%clk
0:01:49.6]} 24. h4 {[%clk 0:02:16.7]} 24... b4 {[%clk 0:01:38.9]} 25. f3 {[%clk
0:02:01.2]} 25... bxc3 {[%clk 0:01:32.9]} 26. Rxc3 {[%clk 0:02:03.1]} 26... Rxc3
{[%clk 0:01:28.7]} 27. Qxc3 {[%clk 0:02:03.7]} 27... Bf5 {[%clk 0:01:23.4]} 28.
Rc1 {[%clk 0:01:58.6]} 28... Bh6 {[%clk 0:01:17.6]} 29. Rd1 {[%clk 0:01:55]}
29... Rc8 {[%clk 0:01:15.7]} 30. Qa5 {[%clk 0:01:55.9]} 30... Rc2 {[%clk
0:01:08.2]} 31. Bd3 {[%clk 0:01:47.5]} 31... Bxd3 {[%clk 0:01:03.5]} 32. Rxd3
{[%clk 0:01:49.4]} 32... Bf4 {[%clk 0:00:52.4]} 33. Bxf4 {[%clk 0:01:17]} 33...
Nxf4 {[%clk 0:00:54.3]} 34. Qd8+ {[%clk 0:01:17.6]} 34... Kg7 {[%clk 0:00:52.6]}
35. Nd7 {[%clk 0:01:19.5]} 35... Rxg2+ {[%clk 0:00:48.5]} 36. Kh1 {[%clk
0:01:19.2]} 36... Qb4 {[%clk 0:00:11.4]} 37. Qf6+ {[%clk 0:01:13.8]} 37... Kg8
{[%clk 0:00:11.9]} 38. Qd8+ {[%clk 0:01:14.5]} 38... Kg7 {[%clk 0:00:12.2]} 39.
Qf6+ {[%clk 0:01:15.4]} 39... Kg8 {[%clk 0:00:13.6]} 40. Qxf4 {[%clk 0:01:07.5]}
40... Re2 {[%clk 0:00:07.5]} 41. Qb8+ {[%clk 0:01:03.7]} 41... Qxb8 {[%clk
0:00:08.9]} 42. Nxb8 {[%clk 0:01:05.3]} 42... Kg7 {[%clk 0:00:10.3]} 43. Nc6
{[%clk 0:01:05]} 43... Kh6 {[%clk 0:00:10]} 44. Nxa7 {[%clk 0:00:53.8]} 44...
Kh5 {[%clk 0:00:10.2]} 45. b4 {[%clk 0:00:55.1]} 45... Kxh4 {[%clk 0:00:11]} 46.
Rb3 {[%clk 0:00:55]} 46... f5 {[%clk 0:00:10.5]} 47. f4 {[%clk 0:00:54.4]} 47...
Kg4 {[%clk 0:00:09.7]} 48. b5 {[%clk 0:00:55.7]} 48... Re7 {[%clk 0:00:09.6]}
49. b6 {[%clk 0:00:54.7]} 49... Rb7 {[%clk 0:00:10.4]} 50. Nc6 {[%clk
0:00:54.7]} 50... Kxf4 {[%clk 0:00:11.4]} 51. Na5 {[%clk 0:00:55.5]} 51... Rb8
{[%clk 0:00:11.9]} 52. b7 {[%clk 0:00:56.7]} 52... Ke4 {[%clk 0:00:13.4]} 53.
Nc6 {[%clk 0:00:57.8]} 1-0

[Event "*** Biggest EVER Titled Tuesday"]
[Site "Chess.com"]
[Date "2018.04.17"]
[Round "4"]
[White "Korchmar_Vasiliy"]
[Black "Sanan_Sjugirov"]
[Result "0-1"]
[WhiteElo "2678"]
[BlackElo "2826"]
[TimeControl "180+2"]
[EndTime "13:53:30 PDT"]
[Termination "Sanan_Sjugirov won by resignation"]

1. d4 {[%clk 0:03:01.1]} 1... Nf6 {[%clk 0:03:00.5]} 2. Nf3 {[%clk 0:03:00.5]}
2... g6 {[%clk 0:03:01.3]} 3. Bg5 {[%clk 0:03:01.5]} 3... Bg7 {[%clk 0:03:02.4]}
4. Nbd2 {[%clk 0:03:02.8]} 4... O-O {[%clk 0:03:02.6]} 5. e3 {[%clk 0:03:04.2]}
5... d6 {[%clk 0:03:00.7]} 6. Bd3 {[%clk 0:03:05.3]} 6... Nbd7 {[%clk 0:02:52]}
7. O-O {[%clk 0:03:06.1]} 7... b6 {[%clk 0:02:49.9]} 8. c3 {[%clk 0:03:04.7]}
8... Bb7 {[%clk 0:02:50.6]} 9. a4 {[%clk 0:03:05.3]} 9... a5 {[%clk 0:02:48.7]}
10. Re1 {[%clk 0:03:06]} 10... e5 {[%clk 0:02:42.7]} 11. e4 {[%clk 0:03:03.8]}
11... h6 {[%clk 0:02:41.5]} 12. Bh4 {[%clk 0:03:04.7]} 12... Re8 {[%clk
0:02:19.6]} 13. Qc2 {[%clk 0:03:01.1]} 13... g5 {[%clk 0:02:15.6]} 14. Bg3
{[%clk 0:03:02.2]} 14... Nh5 {[%clk 0:02:16.6]} 15. Rad1 {[%clk 0:02:54.2]}
15... Nf4 {[%clk 0:01:55.4]} 16. Bf1 {[%clk 0:02:53.7]} 16... Qe7 {[%clk
0:01:49.7]} 17. dxe5 {[%clk 0:02:39.6]} 17... dxe5 {[%clk 0:01:49.5]} 18. Nc4
{[%clk 0:02:38.6]} 18... Nc5 {[%clk 0:01:47.6]} 19. h4 {[%clk 0:02:18.4]} 19...
Rad8 {[%clk 0:01:40.8]} 20. hxg5 {[%clk 0:02:13.6]} 20... hxg5 {[%clk
0:01:41.3]} 21. Rxd8 {[%clk 0:02:07.4]} 21... Rxd8 {[%clk 0:01:41.7]} 22. Nfd2
{[%clk 0:01:39.7]} 22... Qd7 {[%clk 0:01:21.8]} 23. Ne3 {[%clk 0:01:13.6]} 23...
Qxa4 {[%clk 0:01:16.7]} 24. b3 {[%clk 0:01:05.3]} 24... Qd7 {[%clk 0:01:15.3]}
25. Rd1 {[%clk 0:00:58.1]} 25... Qc6 {[%clk 0:01:00.8]} 26. Nf5 {[%clk
0:00:52.7]} 26... Bf6 {[%clk 0:01:01.6]} 27. f3 {[%clk 0:00:40.5]} 27... Bc8
{[%clk 0:00:56.5]} 28. Ne3 {[%clk 0:00:29.1]} 28... Be6 {[%clk 0:00:53.3]} 29.
Bc4 {[%clk 0:00:28.7]} 29... b5 {[%clk 0:00:45.8]} 30. Bxe6 {[%clk 0:00:29.3]}
30... fxe6 {[%clk 0:00:45]} 31. Ng4 {[%clk 0:00:29.6]} 31... Bg7 {[%clk
0:00:44.9]} 32. Nf1 {[%clk 0:00:29.1]} 32... Rxd1 {[%clk 0:00:42.8]} 33. Qxd1
{[%clk 0:00:31]} 33... Qd6 {[%clk 0:00:39.7]} 34. Qe1 {[%clk 0:00:19.6]} 34...
Nxb3 {[%clk 0:00:36.9]} 35. Bxf4 {[%clk 0:00:18.5]} 35... exf4 {[%clk
0:00:33.9]} 36. e5 {[%clk 0:00:19.9]} 36... Qc5+ {[%clk 0:00:31.4]} 37. Kh1
{[%clk 0:00:19.6]} 37... Qc4 {[%clk 0:00:26]} 38. Nfh2 {[%clk 0:00:14.5]} 38...
Qd3 {[%clk 0:00:24.8]} 39. Nf6+ {[%clk 0:00:15.1]} 39... Kf7 {[%clk 0:00:26]}
40. Nhg4 {[%clk 0:00:13.3]} 40... Qd2 {[%clk 0:00:21.3]} 41. Qg1 {[%clk
0:00:14.4]} 41... Qc1 {[%clk 0:00:21.8]} 0-1

[Event "*** Biggest EVER Titled Tuesday"]
[Site "Chess.com"]
[Date "2018.04.17"]
[Round "4"]
[White "nikitakhoroshev"]
[Black "Journey_to_GrandMaster_YT"]
[Result "1-0"]
[WhiteElo "2505"]
[BlackElo "2378"]
[TimeControl "180+2"]
[EndTime "13:53:34 PDT"]
[Termination "nikitakhoroshev won by resignation"]

1. d4 {[%clk 0:03:01.9]} 1... d5 {[%clk 0:03:00.9]} 2. Nc3 {[%clk 0:03:02.8]}
2... c5 {[%clk 0:02:59.2]} 3. Nf3 {[%clk 0:03:00.5]} 3... Nc6 {[%clk 0:02:57.7]}
4. Bf4 {[%clk 0:02:58.7]} 4... Nf6 {[%clk 0:02:20.7]} 5. e3 {[%clk 0:02:53.2]}
5... Nh5 {[%clk 0:02:15.4]} 6. Bg5 {[%clk 0:02:51.3]} 6... h6 {[%clk 0:02:16.2]}
7. Bh4 {[%clk 0:02:52.5]} 7... g5 {[%clk 0:02:15.9]} 8. Bg3 {[%clk 0:02:53.1]}
8... cxd4 {[%clk 0:02:10.1]} 9. Be5 {[%clk 0:02:33.9]} 9... Nxe5 {[%clk
0:01:53.5]} 10. Nxe5 {[%clk 0:02:33.3]} 10... Nf6 {[%clk 0:01:05.7]} 11. Bb5+
{[%clk 0:02:19.6]} 11... Nd7 {[%clk 0:01:00.6]} 12. Qxd4 {[%clk 0:02:12.2]}
12... Bg7 {[%clk 0:00:59.6]} 13. Qxd5 {[%clk 0:02:05.6]} 13... Bxe5 {[%clk
0:00:41.5]} 14. Qxe5 {[%clk 0:02:07.5]} 14... O-O {[%clk 0:00:42.9]} 15. Qd4
{[%clk 0:01:58.1]} 15... a6 {[%clk 0:00:39.6]} 16. Bc4 {[%clk 0:01:51.9]} 16...
b5 {[%clk 0:00:35]} 17. Bd5 {[%clk 0:01:51]} 17... Rb8 {[%clk 0:00:34.9]} 18.
O-O {[%clk 0:01:36.6]} 18... Nf6 {[%clk 0:00:24.7]} 19. Rad1 {[%clk 0:01:33.5]}
19... Bf5 {[%clk 0:00:21.5]} 20. e4 {[%clk 0:01:31.2]} 20... Bg6 {[%clk
0:00:21]} 21. f4 {[%clk 0:01:24.1]} 21... b4 {[%clk 0:00:20.8]} 22. Ne2 {[%clk
0:01:24.4]} 22... Nxd5 {[%clk 0:00:17.9]} 23. exd5 {[%clk 0:01:22.9]} 23... Bxc2
{[%clk 0:00:14.6]} 24. Rc1 {[%clk 0:01:24]} 24... Bg6 {[%clk 0:00:14.9]} 25. f5
{[%clk 0:01:22]} 25... Bh7 {[%clk 0:00:14.3]} 26. Rc6 {[%clk 0:01:21.1]} 26...
Rb5 {[%clk 0:00:14.2]} 27. Rd1 {[%clk 0:01:09.3]} 27... Bxf5 {[%clk 0:00:12.2]}
28. Rxh6 {[%clk 0:01:10.7]} 28... f6 {[%clk 0:00:13.5]} 29. h4 {[%clk
0:01:08.4]} 29... e6 {[%clk 0:00:08.5]} 30. dxe6 {[%clk 0:00:45.8]} 30... Qxd4+
{[%clk 0:00:04]} 31. Nxd4 {[%clk 0:00:47.7]} 31... Re5 {[%clk 0:00:04.6]} 32. e7
{[%clk 0:00:38.6]} 32... Re8 {[%clk 0:00:04.4]} 33. Rxf6 {[%clk 0:00:36.5]}
33... Bg4 {[%clk 0:00:05.5]} 34. Rc1 {[%clk 0:00:33.7]} 34... gxh4 {[%clk
0:00:05.9]} 35. Rg6+ {[%clk 0:00:32.2]} 35... Kf7 {[%clk 0:00:05]} 36. Rxg4
{[%clk 0:00:34.1]} 36... h3 {[%clk 0:00:05.6]} 37. Rf1+ {[%clk 0:00:31.6]} 37...
Kxe7 {[%clk 0:00:06.2]} 38. Nc6+ {[%clk 0:00:31.5]} 38... Kd6 {[%clk 0:00:07.3]}
39. Nxe5 {[%clk 0:00:33.4]} 39... Rxe5 {[%clk 0:00:06.8]} 40. Rd1+ {[%clk
0:00:34.3]} 40... Kc5 {[%clk 0:00:07.2]} 41. gxh3 {[%clk 0:00:35.4]} 41... Re2
{[%clk 0:00:08.5]} 42. Rg5+ {[%clk 0:00:36.6]} 42... Kb6 {[%clk 0:00:08.7]} 43.
Rg6+ {[%clk 0:00:37.5]} 43... Ka5 {[%clk 0:00:09.6]} 44. a3 {[%clk 0:00:38.8]}
44... Rxb2 {[%clk 0:00:09.8]} 45. Rd5+ {[%clk 0:00:40.2]} 45... Ka4 {[%clk
0:00:11.1]} 46. Rxa6+ {[%clk 0:00:41.6]} 46... Kb3 {[%clk 0:00:12.5]} 47. axb4
{[%clk 0:00:43.1]} 47... Rb1+ {[%clk 0:00:11.3]} 48. Kg2 {[%clk 0:00:43.8]}
48... Rb2+ {[%clk 0:00:12.6]} 49. Kg3 {[%clk 0:00:45.2]} 1-0